fUSD/lending_fUSD_20260510
["ID","MTS","AMOUNT","RATE_DAILY","PERIOD"]
[421965809,1778376659000,-1789.93,0.0004183,11]
[421965805,1778376659000,-1789.93,0.0004183,11]
[421965810,1778376659000,-517.47,0.0004183,120]
[421965781,1778376659000,-1789.93,0.0004183,11]
[421965783,1778376659000,-1789.93,0.0004183,11]
[421965751,1778376659000,-500.0,0.0004183,14]
[421965782,1778376659000,-517.47,0.0004183,120]
[421965784,1778376659000,-517.47,0.0004183,120]
[421965756,1778376659000,-500.0,0.0004183,120]
[421965758,1778376659000,-500.0,0.0004183,120]
[421965753,1778376659000,-500.0,0.0004183,14]
[421965760,1778376659000,-500.0,0.0004183,120]
[421965759,1778376659000,-500.0,0.0004183,14]
[421965755,1778376659000,-500.0,0.0004183,14]
[421965757,1778376659000,-500.0,0.0004183,14]
[421965763,1778376659000,-500.0,0.0004183,120]
[421965766,1778376659000,-500.0,0.0004183,14]
[421965767,1778376659000,-500.0,0.0004183,120]
[421965768,1778376659000,-500.0,0.0004183,14]
[421965774,1778376659000,-500.0,0.0004183,120]
[421965765,1778376659000,-500.0,0.0004183,120]
[421965803,1778376659000,-1789.93,0.0004183,11]
[421965773,1778376659000,-500.0,0.0004183,14]
[421965779,1778376659000,-517.47,0.0004183,120]
[421965780,1778376659000,-1789.93,0.0004183,11]
[421965777,1778376659000,-397.49146223,0.0004183,120]
[421965775,1778376659000,-199.94975889,0.0004183,14]
[421965776,1778376659000,-500.0,0.0004183,120]
[421965789,1778376659000,-1789.93,0.0004183,11]
[421965788,1778376659000,-517.47,0.0004183,120]
[421965764,1778376659000,-500.0,0.0004183,14]
[421965769,1778376659000,-500.0,0.0004183,120]
[421965772,1778376659000,-500.0,0.0004183,120]
[421965770,1778376659000,-500.0,0.0004183,14]
[421965771,1778376659000,-500.0,0.0004183,120]
[421965854,1778376660000,-2670.9,0.0004183,120]
[421965850,1778376660000,-2670.9,0.0004183,120]
[421965858,1778376660000,-2670.9,0.0004183,120]
[421965859,1778376660000,-2670.9,0.0004183,120]
[421965848,1778376660000,-2670.9,0.0004183,120]
[421965842,1778376660000,-2670.9,0.0004183,120]
[421965852,1778376660000,-2670.9,0.0004183,120]
[421965851,1778376660000,-2670.9,0.0004183,120]
[421965849,1778376660000,-2670.9,0.0004183,120]
[421965847,1778376660000,-2670.9,0.0004183,120]
[421965857,1778376660000,-2670.9,0.0004183,120]
[421965855,1778376660000,-2670.9,0.0004183,120]
[421965853,1778376660000,-2670.9,0.0004183,120]
[421965868,1778376660000,-500.0,0.0004183,2]
[421965865,1778376660000,-1664.57963886,0.0004183,2]
[421965871,1778376660000,-500.0,0.0004183,2]
[421965866,1778376660000,-500.0,0.0004183,2]
[421965863,1778376660000,-2670.9,0.0004183,120]
[421965867,1778376660000,-500.0,0.0004183,2]
[421965862,1778376660000,-2670.9,0.0004183,120]
[421965864,1778376660000,-2671.04420006,0.0004183,120]
[421965860,1778376660000,-2670.9,0.0004183,120]
[421965872,1778376660000,-500.0,0.0004183,2]
[421965873,1778376660000,-500.0,0.0004183,2]
[421965861,1778376660000,-2670.9,0.0004183,120]
[421965869,1778376660000,-500.0,0.0004183,2]
[421965845,1778376660000,-2670.9,0.0004183,120]
[421965856,1778376660000,-2670.9,0.0004183,120]
[421965841,1778376660000,-2670.9,0.0004183,120]
[421965832,1778376660000,-500.0,0.0004183,120]
[421965844,1778376660000,-2670.9,0.0004183,120]
[421965870,1778376660000,-500.0,0.0004183,2]
[421965817,1778376660000,-1789.93,0.0004183,11]
[421965816,1778376660000,-517.47,0.0004183,120]
[421965814,1778376660000,-517.47,0.0004183,120]
[421965818,1778376660000,-517.47,0.0004183,120]
[421965826,1778376660000,-500.0,0.0004183,120]
[421965825,1778376660000,-1789.97761121,0.0004183,11]
[421965819,1778376660000,-1789.93,0.0004183,11]
[421965820,1778376660000,-517.47,0.0004183,120]
[421965824,1778376660000,-1789.93,0.0004183,11]
[421965823,1778376660000,-517.60993592,0.0004183,120]
[421965821,1778376660000,-1789.93,0.0004183,11]
[421965822,1778376660000,-517.47,0.0004183,120]
[421965828,1778376660000,-253.81949859,0.0004183,120]
[421965838,1778376660000,-500.0,0.0004183,7]
[421965839,1778376660000,-500.0,0.0004183,7]
[421965829,1778376660000,-2557.21868677,0.0004183,60]
[421965837,1778376660000,-500.0,0.0004183,7]
[421965831,1778376660000,-500.0,0.0004183,120]
[421965827,1778376660000,-500.0,0.0004183,120]
[421965833,1778376660000,-496.20679077,0.0004183,120]
[421965836,1778376660000,-500.0,0.0004183,7]
[421965830,1778376660000,-500.0,0.0004183,120]
[421965834,1778376660000,-500.0,0.0004183,7]
[421965835,1778376660000,-500.0,0.0004183,7]
[421965840,1778376660000,-240.61044145,0.0004183,7]
[421965846,1778376660000,-2670.9,0.0004183,120]
[421965843,1778376660000,-2670.9,0.0004183,120]
[421965815,1778376660000,-1789.93,0.0004183,11]
[421965879,1778376660000,-500.0,0.0004183,2]
[421965881,1778376660000,-500.0,0.0004183,120]
[421965907,1778376660000,-500.0,0.0004183,120]
[421965905,1778376660000,-539.32279789,0.0004183,120]
[421965908,1778376660000,-500.0,0.0004183,120]
[421965910,1778376660000,-529.72047973,0.0004183,120]
[421965924,1778376660000,-793.79,0.0004183,120]
[421965913,1778376660000,-500.0,0.0004183,120]
[421965915,1778376660000,-793.79,0.0004183,120]
[421965919,1778376660000,-793.79,0.0004183,120]
[421965917,1778376660000,-793.79,0.0004183,120]
[421965914,1778376660000,-553.95840838,0.0004183,120]
[421965920,1778376660000,-793.79,0.0004183,120]
[421965923,1778376660000,-793.79,0.0004183,120]
[421965916,1778376660000,-20840.0,0.0004183,30]
[421965918,1778376660000,-793.79,0.0004183,120]
[421965922,1778376660000,-793.79,0.0004183,120]
[421965921,1778376660000,-793.79,0.0004183,120]
[421965926,1778376660000,-793.79,0.0004183,120]
[421965925,1778376660000,-793.79,0.0004183,120]
[421965927,1778376660000,-793.79,0.0004183,120]
[421965928,1778376660000,-793.79,0.0004183,120]
[421965930,1778376660000,-793.79,0.0004183,120]
[421965929,1778376660000,-793.79,0.0004183,120]
[421965934,1778376660000,-793.79,0.0004183,120]
[421965935,1778376660000,-793.79,0.0004183,120]
[421965931,1778376660000,-793.79,0.0004183,120]
[421965932,1778376660000,-793.79,0.0004183,120]
[421965874,1778376660000,-500.0,0.0004183,2]
[421965909,1778376660000,-500.0,0.0004183,120]
[421965906,1778376660000,-500.0,0.0004183,120]
[421965933,1778376660000,-793.79,0.0004183,120]
[421965912,1778376660000,-500.0,0.0004183,120]
[421965903,1778376660000,-3382.26,0.0004183,120]
[421965878,1778376660000,-500.0,0.0004183,2]
[421965885,1778376660000,-500.0,0.0004183,120]
[421965884,1778376660000,-432.94325191,0.0004183,120]
[421965875,1778376660000,-500.0,0.0004183,2]
[421965876,1778376660000,-500.0,0.0004183,2]
[421965882,1778376660000,-500.0,0.0004183,120]
[421965880,1778376660000,-466.04304062,0.0004183,2]
[421965883,1778376660000,-500.0,0.0004183,120]
[421965877,1778376660000,-500.0,0.0004183,2]
[421965887,1778376660000,-449.18661159,0.0004183,120]
[421965889,1778376660000,-500.0,0.0004183,14]
[421965893,1778376660000,-500.0,0.0004183,14]
[421965891,1778376660000,-500.0,0.0004183,14]
[421965886,1778376660000,-500.0,0.0004183,120]
[421965892,1778376660000,-500.0,0.0004183,14]
[421965890,1778376660000,-500.0,0.0004183,14]
[421965901,1778376660000,-529.5752608,0.0004183,120]
[421965902,1778376660000,-568.4424259,0.0004183,120]
[421965911,1778376660000,-500.0,0.0004183,120]
[421965900,1778376660000,-500.0,0.0004183,120]
[421965898,1778376660000,-500.0,0.0004183,14]
[421965904,1778376660000,-500.0,0.0004183,120]
[421965896,1778376660000,-500.0,0.0004183,14]
[421965899,1778376660000,-610.1234377,0.0004183,14]
[421965895,1778376660000,-500.0,0.0004183,14]
[421965894,1778376660000,-500.0,0.0004183,14]
[421965888,1778376660000,-500.0,0.0004183,14]
[421965897,1778376660000,-500.0,0.0004183,14]
[421965976,1778376661000,-2217.66,0.0004183,120]
[421965983,1778376661000,-500.0,0.0004183,120]
[421965974,1778376661000,-2217.66,0.0004183,120]
[421965972,1778376661000,-2217.66,0.0004183,120]
[421965968,1778376661000,-2217.66,0.0004183,120]
[421965970,1778376661000,-2217.66,0.0004183,120]
[421965971,1778376661000,-2217.66,0.0004183,120]
[421965969,1778376661000,-2217.66,0.0004183,120]
[421965964,1778376661000,-2217.66,0.0004183,120]
[421965980,1778376661000,-2217.66,0.0004183,120]
[421965973,1778376661000,-2217.66,0.0004183,120]
[421965966,1778376661000,-2217.66,0.0004183,120]
[421965984,1778376661000,-500.0,0.0004183,120]
[421965975,1778376661000,-2217.66,0.0004183,120]
[421965982,1778376661000,-500.0,0.0004183,120]
[421965979,1778376661000,-2217.66,0.0004183,120]
[421965977,1778376661000,-2217.66,0.0004183,120]
[421965978,1778376661000,-2217.66,0.0004183,120]
[421965985,1778376661000,-500.0,0.0004183,120]
[421965995,1778376661000,-503.3,0.0004183,120]
[421965986,1778376661000,-500.0,0.0004183,120]
[421965988,1778376661000,-500.0,0.0004183,120]
[421965989,1778376661000,-500.0,0.0004183,120]
[421965987,1778376661000,-500.0,0.0004183,120]
[421965990,1778376661000,-500.0,0.0004183,120]
[421965967,1778376661000,-2217.66,0.0004183,120]
[421965981,1778376661000,-2217.72726935,0.0004183,120]
[421965965,1778376661000,-2217.66,0.0004183,120]
[421965944,1778376661000,-500.0,0.0004183,12]
[421965959,1778376661000,-2217.66,0.0004183,120]
[421965993,1778376661000,-500.0,0.0004183,120]
[421965936,1778376661000,-793.79,0.0004183,120]
[421965937,1778376661000,-793.79,0.0004183,120]
[421965948,1778376661000,-500.0,0.0004183,12]
[421965938,1778376661000,-793.79,0.0004183,120]
[421965943,1778376661000,-500.0,0.0004183,12]
[421965939,1778376661000,-793.99681911,0.0004183,120]
[421965942,1778376661000,-500.0,0.0004183,12]
[421965945,1778376661000,-500.0,0.0004183,12]
[421965941,1778376661000,-500.0,0.0004183,12]
[421965940,1778376661000,-500.0,0.0004183,12]
[421965949,1778376661000,-500.0,0.0004183,12]
[421965963,1778376661000,-2217.66,0.0004183,120]
[421965946,1778376661000,-500.0,0.0004183,12]
[421965951,1778376661000,-500.0,0.0004183,120]
[421965961,1778376661000,-2217.66,0.0004183,120]
[421965953,1778376661000,-231.57524974,0.0004183,120]
[421965952,1778376661000,-499.9,0.0004183,120]
[421965962,1778376661000,-2217.66,0.0004183,120]
[421965950,1778376661000,-612.20758073,0.0004183,12]
[421965956,1778376661000,-512.67836023,0.0004183,120]
[421965955,1778376661000,-500.0,0.0004183,120]
[421965958,1778376661000,-2217.66,0.0004183,120]
[421965960,1778376661000,-2217.66,0.0004183,120]
[421965957,1778376661000,-265.34420298,0.0004183,120]
[421965954,1778376661000,-500.0,0.0004183,120]
[421965947,1778376661000,-500.0,0.0004183,12]
[421965994,1778376661000,-500.0,0.0004183,120]
[421966040,1778376661000,-9484.33863841,0.0004183,2]
[421965992,1778376661000,-500.0,0.0004183,120]
[421966026,1778376661000,-255.47492746,0.0004183,2]
[421966025,1778376661000,-2462.19345934,0.0004183,14]
[421966028,1778376661000,-500.0,0.0004183,2]
[421966027,1778376661000,-15867.08886681,0.0004183,3]
[421966031,1778376661000,-1332.20609938,0.0004183,15]
[421966030,1778376661000,-4018.28914917,0.0004183,60]
[421966045,1778376661000,-2253.82369562,0.0004183,2]
[421966044,1778376661000,-206914.70017857,0.0004183,2]
[421966038,1778376661000,-500.0,0.0004183,5]
[421966033,1778376661000,-40144.26983692,0.0004183,60]
[421966036,1778376661000,-268.09040621,0.0004183,30]
[421966042,1778376661000,-1221.0,0.0004183,4]
[421966029,1778376661000,-1293.41245811,0.0004183,2]
[421966041,1778376661000,-1344.9208679,0.0004183,2]
[421966035,1778376661000,-600.0,0.0004183,5]
[421966034,1778376661000,-1068.05995046,0.0004183,2]
[421966053,1778376661000,-15382.30322981,0.0004183,3]
[421966043,1778376661000,-3511.9684069,0.0004183,2]
[421966050,1778376661000,-503.72534852,0.0004183,2]
[421966049,1778376661000,-13177.1985769,0.0004183,2]
[421966048,1778376661000,-766.50042178,0.0004183,2]
[421966046,1778376661000,-23515.23662033,0.0004183,2]
[421966047,1778376661000,-7426.69025674,0.0004183,120]
[421966052,1778376661000,-9172.0043982,0.0004183,120]
[421966051,1778376661000,-188.71264723,0.0004183,2]
[421965991,1778376661000,-500.0,0.0004183,120]
[421966039,1778376661000,-15889.53468877,0.0004183,2]
[421966024,1778376661000,-1013.57739267,0.0004183,5]
[421966037,1778376661000,-559.13392248,0.0004183,2]
[421966032,1778376661000,-58871.26599578,0.0004183,2]
[421965997,1778376661000,-207408.06939662,0.0004183,2]
[421966023,1778376661000,-1720.06790091,0.0004183,2]
[421966006,1778376661000,-277.51717433,0.0004183,2]
[421966007,1778376661000,-357.18573588,0.0004183,2]
[421965996,1778376661000,-400.97201946,0.0004183,2]
[421965998,1778376661000,-172210.05015831,0.0004183,2]
[421965999,1778376661000,-125301.67697598,0.0004183,2]
[421966001,1778376661000,-3009.47113663,0.0004183,60]
[421966000,1778376661000,-711364.04408866,0.0004183,2]
[421966004,1778376661000,-52272.74399682,0.0004183,2]
[421966003,1778376661000,-1210.0,0.0004183,2]
[421966002,1778376661000,-10972.64463489,0.0004183,3]
[421966009,1778376661000,-316.14480207,0.0004183,20]
[421966019,1778376661000,-487278.8246633,0.0004183,2]
[421966005,1778376661000,-720.89652109,0.0004183,2]
[421966010,1778376661000,-991.40870789,0.0004183,2]
[421966022,1778376661000,-155.15461554,0.0004183,2]
[421966012,1778376661000,-1055.86516723,0.0004183,2]
[421966014,1778376661000,-503.38291959,0.0004183,2]
[421966018,1778376661000,-300.0,0.0004183,15]
[421966017,1778376661000,-2520.67333944,0.0004183,2]
[421966015,1778376661000,-1526.62842643,0.0004183,2]
[421966016,1778376661000,-3255.3940052,0.0004183,50]
[421966011,1778376661000,-1559.0746633,0.0004183,2]
[421966008,1778376661000,-2874.17723927,0.0004183,2]
[421966021,1778376661000,-222142.36652311,0.0004183,2]
[421966013,1778376661000,-5325.25891761,0.0004183,2]
[421966020,1778376661000,-2774.67689768,0.0004183,2]
[421966058,1778376662000,-587.53564704,0.0004183,2]
[421966054,1778376662000,-5015.90913849,0.0004183,2]
[421966056,1778376662000,-2033.47772038,0.0004183,4]
[421966055,1778376662000,-643.0,0.0004183,2]
[421966057,1778376662000,-995.1299293,0.0004183,2]
[421966059,1778376662000,-241417.43114857,0.0004183,2]
[421966061,1778376662000,-90416.78446549,0.0004183,2]
[421966062,1778376662000,-2078.89105707,0.0004183,2]
[421966064,1778376662000,-54471.69318653,0.0004183,2]
[421966063,1778376662000,-400.35110019,0.00037669,2]
[421966066,1778376662000,-8752.01865533,0.0004183,2]
[421966065,1778376662000,-1619.10914721,0.0004183,2]
[421966067,1778376662000,-461.69142424,0.0004183,2]
[421966060,1778376662000,-474.76,0.0004183,2]
[421966077,1778376663000,-507.0,0.00025294,2]
[421966079,1778376663000,-507.0,0.00026191,3]
[421966078,1778376663000,-12881.94832327,0.0002575,2]
[421966075,1778376663000,-500.0,0.00013698,2]
[421966071,1778376663000,-500.0,0.00013698,2]
[421966070,1778376663000,-500.0,0.00013698,2]
[421966074,1778376663000,-500.0,0.00013698,2]
[421966072,1778376663000,-500.0,0.00013698,2]
[421966069,1778376663000,-238.78819056,0.0002575,2]
[421966068,1778376663000,-507.0,0.00024397,2]
[421966082,1778376663000,-507.0,0.00028881,6]
[421966073,1778376663000,-500.0,0.00013698,2]
[421966080,1778376663000,-507.0,0.00027088,4]
[421966076,1778376663000,-500.0,0.00013698,2]
[421966083,1778376663000,-507.0,0.00029778,7]
[421966095,1778376663000,-197.41,0.00026037,2]
[421966094,1778376663000,-500.0,0.00013698,2]
[421966093,1778376663000,-1687.48845603,0.0004183,2]
[421966088,1778376663000,-188.27,0.00036519,10]
[421966091,1778376663000,-24796.47470747,0.0004183,2]
[421966089,1778376663000,-1794.44722741,0.00037669,2]
[421966092,1778376663000,-500.0,0.00013698,2]
[421966087,1778376663000,-927.757,0.00032541,2]
[421966090,1778376663000,-604.05298588,0.000396,30]
[421966096,1778376663000,-67.91868442,0.00033365,11]
[421966085,1778376663000,-507.0,0.00031572,9]
[421966081,1778376663000,-507.0,0.00027985,5]
[421966086,1778376663000,-507.0,0.00032469,10]
[421966084,1778376663000,-507.0,0.00030675,8]
[421966097,1778376703000,-500.0,9.598e-05,2]
[421966098,1778376718000,-10000.01,9.53e-05,2]
[421966099,1778376740000,-10000.01,9.53e-05,2]
[421966100,1778376741000,-10000.01,9.53e-05,2]
[421966101,1778376760000,-158.946,9.53e-05,2]
[421966102,1778376849000,179.7731,0.00026849,120]
[421966103,1778376883000,-1045.293,9.293e-05,2]
[421966104,1778376948000,610.12,0.00024658,120]
[421966105,1778377399000,2297.58,5.579e-05,2]
[421966107,1778377399000,2297.58,6.166e-05,2]
[421966106,1778377399000,2297.58,5.872e-05,2]
[421966112,1778377400000,2297.58,7.634e-05,2]
[421966111,1778377400000,2297.58,7.341e-05,2]
[421966110,1778377400000,2297.58,7.047e-05,2]
[421966109,1778377400000,2297.58,6.753e-05,2]
[421966108,1778377400000,2297.58,6.46e-05,2]
[421966114,1778377401000,2297.58,8.221e-05,2]
[421966113,1778377401000,2297.58,7.928e-05,2]
[421966117,1778377549000,-1829.71893237,8.515e-05,2]
[421966120,1778377549000,-500.0,9.24e-05,2]
[421966116,1778377549000,-467.86106763,8.515e-05,2]
[421966118,1778377549000,-2297.58,8.809e-05,2]
[421966119,1778377549000,-2297.58,9.102e-05,2]
[421966122,1778377549000,-178.0,9.366e-05,2]
[421966123,1778377549000,-503.54118601,9.367e-05,2]
[421966125,1778377549000,-300.50829185,9.367e-05,2]
[421966126,1778377549000,-1019.21069076,9.396e-05,2]
[421966121,1778377549000,-1158.993341,9.319e-05,2]
[421966124,1778377549000,-252.99596745,9.367e-05,2]
[421966127,1778377593000,1646.71775118,0.00027397,120]
[421966128,1778377599000,-224.27385942,9.396e-05,2]
[421966130,1778377612000,174.8,8.113e-05,2]
[421966133,1778377629000,-11874.61968034,9.529e-05,2]
[421966131,1778377629000,-1054.09544982,9.396e-05,2]
[421966132,1778377629000,-150.0,9.528e-05,2]
[421966136,1778377629000,-209.29834762,9.529e-05,2]
[421966135,1778377629000,-186.222,9.529e-05,2]
[421966137,1778377629000,-18003.71580888,9.53e-05,2]
[421966134,1778377629000,-1351.556,9.529e-05,2]
[421966138,1778377639000,-27404.63865402,9.53e-05,2]
[421966139,1778377647000,-4623.64485461,9.53e-05,2]
[421966140,1778377751000,-326.1040552,9.24e-05,2]
[421966141,1778377754000,-173.8959448,9.24e-05,2]
[421966142,1778377754000,-150.0,9.529e-05,2]
[421966143,1778377754000,-599.74123242,9.529e-05,2]
[421966144,1778377754000,-648.61463089,9.529e-05,2]
[421966145,1778377754000,-500.0,9.529e-05,2]
[421966146,1778377754000,-385.90055275,9.529e-05,2]
[421966148,1778377754000,-500.0,9.529e-05,2]
[421966149,1778377754000,-500.0,9.529e-05,2]
[421966151,1778377754000,-500.0,9.529e-05,2]
[421966147,1778377754000,-500.0,9.529e-05,2]
[421966152,1778377754000,-500.0,9.529e-05,2]
[421966150,1778377754000,-500.0,9.529e-05,2]
[421966161,1778377754000,-222.95650402,9.529e-05,2]
[421966159,1778377754000,-500.0,9.529e-05,2]
[421966158,1778377754000,-500.0,9.529e-05,2]
[421966160,1778377754000,-500.0,9.529e-05,2]
[421966156,1778377754000,-500.0,9.529e-05,2]
[421966154,1778377754000,-500.0,9.529e-05,2]
[421966155,1778377754000,-500.0,9.529e-05,2]
[421966153,1778377754000,-500.0,9.529e-05,2]
[421966157,1778377754000,-500.0,9.529e-05,2]
[421966176,1778377764000,-500.0,9.529e-05,2]
[421966175,1778377764000,-500.0,9.529e-05,2]
[421966177,1778377764000,-500.0,9.529e-05,2]
[421966174,1778377764000,-347.74236054,9.529e-05,2]
[421966173,1778377764000,-500.0,9.529e-05,2]
[421966172,1778377764000,-500.0,9.529e-05,2]
[421966171,1778377764000,-500.0,9.529e-05,2]
[421966164,1778377764000,-500.0,9.529e-05,2]
[421966169,1778377764000,-500.0,9.529e-05,2]
[421966167,1778377764000,-500.0,9.529e-05,2]
[421966168,1778377764000,-500.0,9.529e-05,2]
[421966166,1778377764000,-500.0,9.529e-05,2]
[421966162,1778377764000,-277.04349598,9.529e-05,2]
[421966165,1778377764000,-500.0,9.529e-05,2]
[421966163,1778377764000,-500.0,9.529e-05,2]
[421966170,1778377764000,-500.0,9.529e-05,2]
[421966179,1778377764000,-500.0,9.529e-05,2]
[421966186,1778377764000,-500.0,9.529e-05,2]
[421966180,1778377764000,-500.0,9.529e-05,2]
[421966196,1778377764000,-301.09563417,9.529e-05,2]
[421966195,1778377764000,-500.0,9.529e-05,2]
[421966194,1778377764000,-500.0,9.529e-05,2]
[421966192,1778377764000,-500.0,9.529e-05,2]
[421966193,1778377764000,-500.0,9.529e-05,2]
[421966191,1778377764000,-500.0,9.529e-05,2]
[421966190,1778377764000,-500.0,9.529e-05,2]
[421966178,1778377764000,-500.0,9.529e-05,2]
[421966188,1778377764000,-277.66134497,9.529e-05,2]
[421966187,1778377764000,-500.0,9.529e-05,2]
[421966185,1778377764000,-500.0,9.529e-05,2]
[421966182,1778377764000,-500.0,9.529e-05,2]
[421966183,1778377764000,-500.0,9.529e-05,2]
[421966184,1778377764000,-500.0,9.529e-05,2]
[421966181,1778377764000,-500.0,9.529e-05,2]
[421966189,1778377764000,-500.0,9.529e-05,2]
[421966204,1778377831000,-569.13169042,9.53e-05,2]
[421966206,1778377831000,-914.31806116,9.53e-05,2]
[421966208,1778377831000,-763.06944185,9.53e-05,2]
[421966209,1778377831000,-680.23597138,9.53e-05,2]
[421966202,1778377831000,-970.44892758,9.53e-05,2]
[421966205,1778377831000,-5786.31773857,9.53e-05,2]
[421966210,1778377831000,-5128.06623055,9.53e-05,2]
[421966211,1778377831000,-79053.17565371,9.53e-05,2]
[421966213,1778377831000,-723.91269507,9.53e-05,2]
[421966212,1778377831000,-2277.63330726,9.53e-05,2]
[421966207,1778377831000,-803.61546425,9.53e-05,2]
[421966247,1778377838000,-2297.58,0.00011158,2]
[421966257,1778377838000,-433.0,0.0001153,2]
[421966246,1778377838000,-37087.91726484,0.00011099,2]
[421966259,1778377838000,-2000.0,0.00012054,2]
[421966258,1778377838000,-150.0,0.00011729,2]
[421966248,1778377838000,-150.99,0.00011281,2]
[421966249,1778377838000,-18955.13,0.00011281,2]
[421966240,1778377838000,-152.0,0.00010765,2]
[421966254,1778377838000,-2847.44,0.00011281,2]
[421966251,1778377838000,-299.99,0.00011281,2]
[421966250,1778377838000,-4393.96,0.00011281,2]
[421966253,1778377838000,-9999.99,0.00011281,2]
[421966256,1778377838000,-500.0,0.00011495,2]
[421966260,1778377838000,-48127.07,0.00012055,2]
[421966261,1778377838000,-500.0,0.00012073,2]
[421966252,1778377838000,-9999.99,0.00011281,2]
[421966255,1778377838000,-490.74,0.00011454,2]
[421966227,1778377838000,-2092.17979885,9.53e-05,2]
[421966241,1778377838000,-2000.0,0.00010848,2]
[421966228,1778377838000,-2350205.89570184,9.53e-05,2]
[421966230,1778377838000,-2000.0,9.643e-05,2]
[421966229,1778377838000,-209.29834762,9.598e-05,2]
[421966236,1778377838000,-2297.58,0.00010277,2]
[421966265,1778377838000,-520.0,0.00012087,2]
[421966232,1778377838000,-10000.0,9.7e-05,2]
[421966231,1778377838000,-2297.58,9.689e-05,2]
[421966233,1778377838000,-2297.58,9.983e-05,2]
[421966234,1778377838000,-731.0524859,0.0001,2]
[421966235,1778377838000,-191.3,0.00010277,2]
[421966244,1778377838000,-194.31,0.00010989,2]
[421966237,1778377838000,-255.0,0.00010482,2]
[421966245,1778377838000,-4895.4051139,0.00011099,2]
[421966239,1778377838000,-517.78680645,0.00010625,2]
[421966238,1778377838000,-2297.58,0.0001057,2]
[421966243,1778377838000,-150.0,0.00010989,2]
[421966266,1778377838000,-499.99,0.00012087,2]
[421966242,1778377838000,-2297.58,0.00010864,2]
[421966263,1778377838000,-999.99,0.00012087,2]
[421966294,1778377838000,-736.0,0.00012683,2]
[421966286,1778377838000,-151.0,0.0001217,2]
[421966287,1778377838000,-151.0,0.0001217,2]
[421966289,1778377838000,-151.0,0.0001217,2]
[421966291,1778377838000,-2080.17592889,0.00012265,2]
[421966292,1778377838000,-488.82693996,0.00012621,2]
[421966293,1778377838000,-432.3819205,0.00012621,2]
[421966290,1778377838000,-250.0,0.00012209,2]
[421966288,1778377838000,-151.0,0.0001217,2]
[421966295,1778377838000,-2157.14243826,0.00012813,2]
[421966298,1778377838000,-288.05639002,0.00012917,2]
[421966297,1778377838000,-490.74,0.00012886,2]
[421966296,1778377838000,-191.3,0.00012846,2]
[421966300,1778377838000,-4895.40511389,0.00013075,2]
[421966271,1778377838000,-151.0,0.0001217,2]
[421966285,1778377838000,-151.0,0.0001217,2]
[421966282,1778377838000,-151.0,0.0001217,2]
[421966299,1778377838000,-37087.91726476,0.00013075,2]
[421966278,1778377838000,-151.0,0.0001217,2]
[421966275,1778377838000,-151.0,0.0001217,2]
[421966269,1778377838000,-151.0,0.0001217,2]
[421966270,1778377838000,-151.0,0.0001217,2]
[421966268,1778377838000,-4430.27,0.00012087,2]
[421966267,1778377838000,-24999.99,0.00012087,2]
[421966283,1778377838000,-151.0,0.0001217,2]
[421966276,1778377838000,-151.0,0.0001217,2]
[421966264,1778377838000,-9999.99,0.00012087,2]
[421966284,1778377838000,-151.0,0.0001217,2]
[421966272,1778377838000,-202.07076129,0.0001217,2]
[421966274,1778377838000,-151.0,0.0001217,2]
[421966280,1778377838000,-151.0,0.0001217,2]
[421966262,1778377838000,-500.0,0.00012073,2]
[421966279,1778377838000,-151.0,0.0001217,2]
[421966273,1778377838000,-151.0,0.0001217,2]
[421966277,1778377838000,-151.0,0.0001217,2]